[Event "Titled Tuesday Blitz March 28 Late 2023"]
[White "Bullen, Alex"]
[Black "Escalona Landi, Samid Eduardo"]
[WhiteFideId "1801627"]
[BlackFideId "3937437"]
[WhiteElo "2088"]
[BlackElo "2207"]
[Result "0-1"]
[Round "06"]
[TimeControl "180+2"]
[Date "2023.03.28"]
[WhiteClock "0:00:18"]
[BlackClock "0:01:29"]

1. d4 {[%clk 0:03:00]}  Nf6 {[%clk 0:02:57]} 2. Nf3 {[%clk 0:03:01]}  g6 {[%clk 0:02:57]} 3. Nbd2 {[%clk 0:03:01]}  d5 {[%clk 0:02:56]} 4. b4 {[%clk 0:03:01]}  Bg7 {[%clk 0:02:57]} 5. e3 {[%clk 0:03:01]}  O-O {[%clk 0:02:58]} 6. c4 {[%clk 0:02:59]}  e6 {[%clk 0:02:55]} 7. a4 {[%clk 0:02:54]}  a5 {[%clk 0:02:54]} 8. b5 {[%clk 0:02:54]}  b6 {[%clk 0:02:54]} 9. Be2 {[%clk 0:02:49]}  Bb7 {[%clk 0:02:54]} 10. Bb2 {[%clk 0:02:44]}  Nbd7 {[%clk 0:02:54]} 11. O-O {[%clk 0:02:42]}  c5 {[%clk 0:02:53]} 12. bxc6 {[%clk 0:02:40]}  Bxc6 {[%clk 0:02:52]} 13. cxd5 {[%clk 0:02:37]}  Bxd5 {[%clk 0:02:53]} 14. Bc4 {[%clk 0:02:28]}  Bb7 {[%clk 0:02:49]} 15. Qb3 {[%clk 0:02:25]}  Nd5 {[%clk 0:02:44]} 16. Ba3 {[%clk 0:02:16]}  Re8 {[%clk 0:02:43]} 17. Rfc1 {[%clk 0:02:15]}  Bf8 {[%clk 0:02:38]} 18. Bxf8 {[%clk 0:02:14]}  Kxf8 {[%clk 0:02:36]} 19. Bb5 {[%clk 0:02:13]}  Re7 {[%clk 0:02:25]} 20. Nc4 {[%clk 0:02:09]}  Nb4 {[%clk 0:02:16]} 21. Nfe5 {[%clk 0:01:59]}  Nxe5 {[%clk 0:02:15]} 22. Nxe5 {[%clk 0:01:58]}  Rc7 {[%clk 0:02:08]} 23. h3 {[%clk 0:01:18]}  Rac8 {[%clk 0:02:07]} 24. Qb2 {[%clk 0:01:01]}  Qd5 {[%clk 0:01:59]} 25. Nf3 {[%clk 0:00:59]}  Qf5 {[%clk 0:01:44]} 26. Be2 {[%clk 0:00:49]}  Rc2 {[%clk 0:01:43]} 27. Rxc2 {[%clk 0:00:30]}  Rxc2 {[%clk 0:01:44]} 28. Bd3 {[%clk 0:00:17]}  Rxb2 {[%clk 0:01:41]} 29. Bxf5 {[%clk 0:00:16]}  gxf5 {[%clk 0:01:41]} 30. Rc1 {[%clk 0:00:15]}  Bxf3 {[%clk 0:01:40]} 31. gxf3 {[%clk 0:00:15]}  Nd3 {[%clk 0:01:40]} 32. Rc8+ {[%clk 0:00:15]}  Kg7 {[%clk 0:01:40]} 33. f4 {[%clk 0:00:15]}  Nxf2 {[%clk 0:01:39]} 34. Kg2 {[%clk 0:00:15]}  Nd1+ {[%clk 0:01:38]} 35. Kf3 {[%clk 0:00:15]}  Rf2+ {[%clk 0:01:38]} 36. Kg3 {[%clk 0:00:15]}  Re2 {[%clk 0:01:39]} 37. e4 {[%clk 0:00:15]}  Rxe4 {[%clk 0:01:37]} 38. d5 {[%clk 0:00:16]}  exd5 {[%clk 0:01:36]} 39. h4 {[%clk 0:00:16]}  d4 {[%clk 0:01:36]} 40. h5 {[%clk 0:00:17]}  h6 {[%clk 0:01:37]} 41. Rc7 {[%clk 0:00:16]}  Nc3 {[%clk 0:01:32]} 42. Kh4 {[%clk 0:00:16]}  Rxf4+ {[%clk 0:01:31]} 43. Kg3 {[%clk 0:00:16]}  Re4 {[%clk 0:01:30]} 44. Kh3 {[%clk 0:00:17]}  d3 {[%clk 0:01:30]} 45. Rd7 {[%clk 0:00:16]}  Re3+ {[%clk 0:01:29]} 46. Kh4 {[%clk 0:00:16]}  Re4+ {[%clk 0:01:25]} 47. Kh3 {[%clk 0:00:16]}  Rxa4 {[%clk 0:01:26]} 48. Kg3 {[%clk 0:00:15]}  Ne4+ {[%clk 0:01:26]} 49. Kh4 {[%clk 0:00:14]}  Nf6+ {[%clk 0:01:25]} 50. Kh3 {[%clk 0:00:14]}  Nxd7 {[%clk 0:01:26]} 51. Kg2 {[%clk 0:00:15]}  Re4 {[%clk 0:01:26]} 52. Kg1 {[%clk 0:00:16]}  d2 {[%clk 0:01:26]} 53. Kf1 {[%clk 0:00:17]}  d1=Q+ {[%clk 0:01:26]} 54. Kf2 {[%clk 0:00:18]}  Qd2+ {[%clk 0:01:26]} 55. Kg3 {[%clk 0:00:18]}  Qd3+ {[%clk 0:01:27]} 56. Kh2 {[%clk 0:00:18]}  Re2+ {[%clk 0:01:28]} 57. Kg1 {[%clk 0:00:18]}  Qd1# {[%clk 0:01:29]} 0-1


[Site "https://www.chess.com"]

[Event "Titled Tuesday Blitz March 28 Late 2023"]
[White "Darini, Pouria"]
[Black "marik_spb"]
[WhiteFideId "12502200"]
[WhiteElo "2482"]
[BlackElo "2402"]
[Result "0-1"]
[Round "06"]
[TimeControl "180+2"]
[Date "2023.03.28"]
[WhiteClock "0:02:47"]
[BlackClock "0:01:50"]

1. a3 {[%clk 0:03:00]}  Nf6 {[%clk 0:02:22]} 2. Nf3 {[%clk 0:02:59]}  e6 {[%clk 0:02:23]} 3. d4 {[%clk 0:02:59]}  d5 {[%clk 0:02:23]} 4. e3 {[%clk 0:02:56]}  c5 {[%clk 0:02:24]} 5. dxc5 {[%clk 0:02:57]}  a5 {[%clk 0:02:22]} 6. b4 {[%clk 0:02:58]}  axb4 {[%clk 0:02:21]} 7. Bb2 {[%clk 0:02:53]}  Bxc5 {[%clk 0:02:19]} 8. Bb5+ {[%clk 0:02:53]}  Bd7 {[%clk 0:02:17]} 9. Bxd7+ {[%clk 0:02:51]}  Nbxd7 {[%clk 0:02:18]} 10. O-O {[%clk 0:02:51]}  bxa3 {[%clk 0:02:17]} 11. Nxa3 {[%clk 0:02:52]}  O-O {[%clk 0:02:16]} 12. c4 {[%clk 0:02:52]}  dxc4 {[%clk 0:02:10]} 13. Nxc4 {[%clk 0:02:52]}  b5 {[%clk 0:02:09]} 14. Nd6 {[%clk 0:02:51]}  Qb6 {[%clk 0:02:03]} 15. Rxa8 {[%clk 0:02:46]}  Rxa8 {[%clk 0:02:04]} 16. Ne4 {[%clk 0:02:47]}  Nxe4 {[%clk 0:01:56]} 17. Qxd7 {[%clk 0:02:47]}  Rd8 {[%clk 0:01:50]} 0-1


[Site "https://www.chess.com"]

[Event "Titled Tuesday Blitz March 28 Late 2023"]
[White "Kielinkei"]
[Black "Feng, Eric"]
[BlackFideId "30952590"]
[WhiteElo "2396"]
[BlackElo "1785"]
[Result "1/2-1/2"]
[Round "06"]
[TimeControl "180+2"]
[Date "2023.03.28"]
[WhiteClock "0:00:14"]
[BlackClock "0:00:22"]

1. Nf3 {[%clk 0:03:00]}  Nf6 {[%clk 0:02:59]} 2. g3 {[%clk 0:03:00]}  g6 {[%clk 0:02:59]} 3. Bg2 {[%clk 0:02:59]}  Bg7 {[%clk 0:03:00]} 4. d4 {[%clk 0:03:00]}  O-O {[%clk 0:03:00]} 5. O-O {[%clk 0:03:00]}  d5 {[%clk 0:03:01]} 6. c4 {[%clk 0:03:00]}  Bf5 {[%clk 0:03:02]} 7. cxd5 {[%clk 0:02:59]}  Nxd5 {[%clk 0:03:02]} 8. Nc3 {[%clk 0:02:58]}  Nxc3 {[%clk 0:03:02]} 9. bxc3 {[%clk 0:02:58]}  c5 {[%clk 0:03:03]} 10. Ba3 {[%clk 0:02:46]}  cxd4 {[%clk 0:03:02]} 11. cxd4 {[%clk 0:02:45]}  Nc6 {[%clk 0:03:01]} 12. e3 {[%clk 0:02:39]}  Re8 {[%clk 0:02:58]} 13. Rc1 {[%clk 0:02:30]}  e5 {[%clk 0:02:55]} 14. dxe5 {[%clk 0:02:25]}  Nxe5 {[%clk 0:02:45]} 15. Qxd8 {[%clk 0:02:20]}  Raxd8 {[%clk 0:02:45]} 16. Nxe5 {[%clk 0:02:19]}  Bxe5 {[%clk 0:02:46]} 17. Bxb7 {[%clk 0:02:14]}  Rd2 {[%clk 0:02:45]} 18. Bb4 {[%clk 0:01:42]}  Rxa2 {[%clk 0:02:37]} 19. Bc3 {[%clk 0:01:38]}  Bxc3 {[%clk 0:02:00]} 20. Rxc3 {[%clk 0:01:39]}  a5 {[%clk 0:01:58]} 21. Bd5 {[%clk 0:01:34]}  Rd2 {[%clk 0:01:55]} 22. Bb3 {[%clk 0:01:21]}  Bh3 {[%clk 0:01:46]} 23. Ra1 {[%clk 0:01:19]}  Rb8 {[%clk 0:01:45]} 24. Rc2 {[%clk 0:01:02]}  Rd3 {[%clk 0:01:31]} 25. Bc4 {[%clk 0:01:01]}  Ra3 {[%clk 0:01:31]} 26. Rcc1 {[%clk 0:00:50]}  Rxa1 {[%clk 0:01:28]} 27. Rxa1 {[%clk 0:00:50]}  Rb4 {[%clk 0:01:27]} 28. Bf1 {[%clk 0:00:37]}  Bd7 {[%clk 0:00:58]} 29. Rxa5 {[%clk 0:00:24]}  Rb1 {[%clk 0:00:58]} 30. Kg2 {[%clk 0:00:22]}  Bc6+ {[%clk 0:00:58]} 31. f3 {[%clk 0:00:22]}  Rb2+ {[%clk 0:00:58]} 32. Kg1 {[%clk 0:00:22]}  Bxf3 {[%clk 0:00:59]} 33. Ra1 {[%clk 0:00:18]}  Kg7 {[%clk 0:00:56]} 34. Rc1 {[%clk 0:00:14]}  h5 {[%clk 0:00:55]} 35. Rc4 {[%clk 0:00:13]}  Kh6 {[%clk 0:00:54]} 36. Rf4 {[%clk 0:00:14]}  Bd5 {[%clk 0:00:53]} 37. Rf2 {[%clk 0:00:14]}  Rb1 {[%clk 0:00:52]} 38. h4 {[%clk 0:00:13]}  f5 {[%clk 0:00:51]} 39. Kh2 {[%clk 0:00:12]}  Be4 {[%clk 0:00:51]} 40. Bg2 {[%clk 0:00:11]}  Bd3 {[%clk 0:00:48]} 41. Rd2 {[%clk 0:00:11]}  Rb3 {[%clk 0:00:46]} 42. Bf3 {[%clk 0:00:11]}  Bc4 {[%clk 0:00:43]} 43. Rc2 {[%clk 0:00:09]}  Bb5 {[%clk 0:00:42]} 44. Be2 {[%clk 0:00:08]}  Be8 {[%clk 0:00:28]} 45. Kg1 {[%clk 0:00:09]}  Rxe3 {[%clk 0:00:28]} 46. Kf2 {[%clk 0:00:09]}  Re6 {[%clk 0:00:28]} 47. Bf3 {[%clk 0:00:09]}  Bb5 {[%clk 0:00:28]} 48. Rc8 {[%clk 0:00:09]}  Kg7 {[%clk 0:00:27]} 49. Rc7+ {[%clk 0:00:08]}  Kf6 {[%clk 0:00:28]} 50. Rb7 {[%clk 0:00:09]}  Bd3 {[%clk 0:00:25]} 51. Rb4 {[%clk 0:00:10]}  Ra6 {[%clk 0:00:20]} 52. Rd4 {[%clk 0:00:10]}  Bb5 {[%clk 0:00:18]} 53. Rd2 {[%clk 0:00:10]}  Be8 {[%clk 0:00:18]} 54. Rb2 {[%clk 0:00:11]}  Bf7 {[%clk 0:00:18]} 55. Rd2 {[%clk 0:00:12]}  g5 {[%clk 0:00:17]} 56. hxg5+ {[%clk 0:00:11]}  Kxg5 {[%clk 0:00:18]} 57. Rb2 {[%clk 0:00:10]}  Be6 {[%clk 0:00:16]} 58. Re2 {[%clk 0:00:10]}  Kf6 {[%clk 0:00:15]} 59. Rb2 {[%clk 0:00:11]}  Ra4 {[%clk 0:00:15]} 60. Bxh5 {[%clk 0:00:10]}  Kg5 {[%clk 0:00:14]} 61. Bf3 {[%clk 0:00:10]}  Rd4 {[%clk 0:00:13]} 62. Rc2 {[%clk 0:00:10]}  Bc4 {[%clk 0:00:12]} 63. Rb2 {[%clk 0:00:10]}  Rd3 {[%clk 0:00:13]} 64. Be2 {[%clk 0:00:09]}  Rc3 {[%clk 0:00:13]} 65. Bxc4 {[%clk 0:00:09]}  Rxc4 {[%clk 0:00:14]} 66. Kf3 {[%clk 0:00:09]}  Rc3+ {[%clk 0:00:14]} 67. Kf2 {[%clk 0:00:10]}  Kg4 {[%clk 0:00:15]} 68. Rb4+ {[%clk 0:00:10]}  Kg5 {[%clk 0:00:15]} 69. Kg2 {[%clk 0:00:10]}  Rd3 {[%clk 0:00:15]} 70. Kf2 {[%clk 0:00:11]}  Kf6 {[%clk 0:00:15]} 71. Ra4 {[%clk 0:00:11]}  Ke5 {[%clk 0:00:16]} 72. Rb4 {[%clk 0:00:10]}  Ra3 {[%clk 0:00:16]} 73. Rf4 {[%clk 0:00:10]}  Kf6 {[%clk 0:00:16]} 74. Kg2 {[%clk 0:00:10]}  Kg5 {[%clk 0:00:16]} 75. Kf2 {[%clk 0:00:11]}  Rb3 {[%clk 0:00:17]} 76. Kg2 {[%clk 0:00:12]}  Rc3 {[%clk 0:00:18]} 77. Kf2 {[%clk 0:00:12]}  Rd3 {[%clk 0:00:18]} 78. Kg2 {[%clk 0:00:13]}  Rd5 {[%clk 0:00:18]} 79. Kf2 {[%clk 0:00:13]}  Re5 {[%clk 0:00:19]} 80. Kg2 {[%clk 0:00:13]}  Re3 {[%clk 0:00:19]} 81. Kf2 {[%clk 0:00:14]}  Re4 {[%clk 0:00:19]} 82. Rxe4 {[%clk 0:00:13]}  fxe4 {[%clk 0:00:20]} 83. Ke3 {[%clk 0:00:13]}  Kg4 {[%clk 0:00:21]} 84. Kxe4 {[%clk 0:00:14]}  Kxg3 {[%clk 0:00:22]} 1/2-1/2


[Site "https://www.chess.com"]

[Event "Titled Tuesday Blitz March 28 Late 2023"]
[White "Gold_Ocean"]
[Black "Bouget, Alexandre"]
[BlackFideId "681318"]
[WhiteElo "2607"]
[BlackElo "2177"]
[Result "1-0"]
[Round "06"]
[TimeControl "180+2"]
[Date "2023.03.28"]
[WhiteClock "0:00:16"]
[BlackClock "0:00:11"]

1. Nf3 {[%clk 0:03:00]}  d5 {[%clk 0:02:48]} 2. d4 {[%clk 0:03:00]}  Nc6 {[%clk 0:02:49]} 3. Bf4 {[%clk 0:03:00]}  e6 {[%clk 0:02:47]} 4. e3 {[%clk 0:03:00]}  Nf6 {[%clk 0:02:46]} 5. h3 {[%clk 0:03:00]}  Bd6 {[%clk 0:02:47]} 6. Bd3 {[%clk 0:02:56]}  O-O {[%clk 0:02:47]} 7. O-O {[%clk 0:02:55]}  Ne7 {[%clk 0:02:44]} 8. Ne5 {[%clk 0:02:49]}  c5 {[%clk 0:02:44]} 9. c3 {[%clk 0:02:49]}  b6 {[%clk 0:02:43]} 10. Nd2 {[%clk 0:02:49]}  Bb7 {[%clk 0:02:44]} 11. Bh2 {[%clk 0:02:49]}  Ng6 {[%clk 0:02:42]} 12. f4 {[%clk 0:02:48]}  Ne4 {[%clk 0:02:41]} 13. Nxe4 {[%clk 0:02:41]}  dxe4 {[%clk 0:02:41]} 14. Bc4 {[%clk 0:02:42]}  Ne7 {[%clk 0:02:38]} 15. Qh5 {[%clk 0:02:38]}  Nd5 {[%clk 0:02:31]} 16. Qe2 {[%clk 0:02:33]}  f6 {[%clk 0:02:29]} 17. Ng4 {[%clk 0:02:33]}  cxd4 {[%clk 0:02:25]} 18. exd4 {[%clk 0:02:22]}  Qc7 {[%clk 0:02:14]} 19. Bxd5 {[%clk 0:02:15]}  exd5 {[%clk 0:02:09]} 20. Ne3 {[%clk 0:02:06]}  f5 {[%clk 0:02:07]} 21. Rac1 {[%clk 0:02:02]}  g5 {[%clk 0:01:36]} 22. c4 {[%clk 0:01:58]}  gxf4 {[%clk 0:01:35]} 23. cxd5 {[%clk 0:01:45]}  Qg7 {[%clk 0:01:31]} 24. Bxf4 {[%clk 0:01:44]}  Bxf4 {[%clk 0:01:28]} 25. Rxf4 {[%clk 0:01:45]}  Qxd4 {[%clk 0:01:28]} 26. Rd1 {[%clk 0:01:39]}  Qe5 {[%clk 0:01:28]} 27. Rdf1 {[%clk 0:01:33]}  Rac8 {[%clk 0:00:59]} 28. Rxf5 {[%clk 0:00:56]}  Rxf5 {[%clk 0:01:00]} 29. Nxf5 {[%clk 0:00:57]}  Bxd5 {[%clk 0:00:55]} 30. Ne3 {[%clk 0:00:45]}  Kh8 {[%clk 0:00:44]} 31. Rf5 {[%clk 0:00:38]}  Rc1+ {[%clk 0:00:36]} 32. Kf2 {[%clk 0:00:37]}  Qh2 {[%clk 0:00:31]} 33. Nxd5 {[%clk 0:00:24]}  Qg1+ {[%clk 0:00:21]} 34. Kg3 {[%clk 0:00:24]}  Re1 {[%clk 0:00:18]} 35. Qg4 {[%clk 0:00:20]}  Rf1 {[%clk 0:00:10]} 36. Rxf1 {[%clk 0:00:17]}  Qxf1 {[%clk 0:00:11]} 37. Qxe4 {[%clk 0:00:16]} 1-0


[Site "https://www.chess.com"]

[Event "Titled Tuesday Blitz March 28 Late 2023"]
[White "Srinath, Rao S.V."]
[Black "Guzman Moneo, Alberto"]
[WhiteFideId "5028876"]
[BlackFideId "2209616"]
[WhiteElo "2196"]
[BlackElo "2157"]
[Result "1-0"]
[Round "06"]
[TimeControl "180+2"]
[Date "2023.03.28"]
[WhiteClock "0:01:04"]
[BlackClock "0:00:03"]

1. c4 {[%clk 0:03:00]}  e5 {[%clk 0:02:59]} 2. Nc3 {[%clk 0:02:59]}  Bb4 {[%clk 0:02:58]} 3. Nf3 {[%clk 0:02:57]}  Bxc3 {[%clk 0:02:51]} 4. dxc3 {[%clk 0:02:55]}  d6 {[%clk 0:02:42]} 5. g3 {[%clk 0:02:49]}  c5 {[%clk 0:02:39]} 6. Bg2 {[%clk 0:02:49]}  Nc6 {[%clk 0:02:37]} 7. h3 {[%clk 0:02:47]}  Be6 {[%clk 0:02:37]} 8. b3 {[%clk 0:02:47]}  Nf6 {[%clk 0:02:31]} 9. Be3 {[%clk 0:02:42]}  O-O {[%clk 0:02:29]} 10. Qd2 {[%clk 0:02:42]}  Qa5 {[%clk 0:02:17]} 11. Ng5 {[%clk 0:02:37]}  Bf5 {[%clk 0:02:09]} 12. g4 {[%clk 0:02:34]}  Bg6 {[%clk 0:02:00]} 13. Bd5 {[%clk 0:02:01]}  h6 {[%clk 0:01:46]} 14. Nf3 {[%clk 0:01:55]}  Ne4 {[%clk 0:01:32]} 15. Bxe4 {[%clk 0:01:54]}  Bxe4 {[%clk 0:01:32]} 16. O-O {[%clk 0:01:50]}  Rad8 {[%clk 0:01:25]} 17. Nh4 {[%clk 0:01:46]}  d5 {[%clk 0:01:18]} 18. cxd5 {[%clk 0:01:42]}  Rxd5 {[%clk 0:01:12]} 19. Qe1 {[%clk 0:01:43]}  c4 {[%clk 0:01:00]} 20. b4 {[%clk 0:01:42]}  Qd8 {[%clk 0:00:54]} 21. f3 {[%clk 0:01:42]}  Bh7 {[%clk 0:00:48]} 22. Qg3 {[%clk 0:01:36]}  b5 {[%clk 0:00:37]} 23. g5 {[%clk 0:01:35]}  h5 {[%clk 0:00:34]} 24. g6 {[%clk 0:01:35]}  fxg6 {[%clk 0:00:34]} 25. Nxg6 {[%clk 0:01:35]}  Bxg6 {[%clk 0:00:32]} 26. Qxg6 {[%clk 0:01:36]}  Rd6 {[%clk 0:00:25]} 27. Qxh5 {[%clk 0:01:33]}  Qe8 {[%clk 0:00:19]} 28. Qxe8 {[%clk 0:01:31]}  Rxe8 {[%clk 0:00:19]} 29. Kf2 {[%clk 0:01:31]}  e4 {[%clk 0:00:18]} 30. f4 {[%clk 0:01:31]}  Red8 {[%clk 0:00:17]} 31. Rg1 {[%clk 0:01:31]}  Ne7 {[%clk 0:00:16]} 32. Rg5 {[%clk 0:01:31]}  a6 {[%clk 0:00:15]} 33. Rag1 {[%clk 0:01:32]}  g6 {[%clk 0:00:15]} 34. Bc5 {[%clk 0:01:31]}  Re6 {[%clk 0:00:08]} 35. Bxe7 {[%clk 0:01:32]}  Rxe7 {[%clk 0:00:08]} 36. Rxg6+ {[%clk 0:01:33]}  Kf7 {[%clk 0:00:08]} 37. Rg7+ {[%clk 0:01:30]}  Ke8 {[%clk 0:00:08]} 38. Rg8+ {[%clk 0:01:30]}  Kf7 {[%clk 0:00:05]} 39. R1g7+ {[%clk 0:01:29]}  Kf6 {[%clk 0:00:06]} 40. Rxd8 {[%clk 0:01:23]}  Rxg7 {[%clk 0:00:05]} 41. Rd6+ {[%clk 0:01:22]}  Kf5 {[%clk 0:00:05]} 42. e3 {[%clk 0:01:23]}  Rh7 {[%clk 0:00:03]} 43. Rd5+ {[%clk 0:01:22]}  Kf6 {[%clk 0:00:03]} 44. Kg3 {[%clk 0:01:21]}  Rg7+ {[%clk 0:00:04]} 45. Rg5 {[%clk 0:01:20]}  Rh7 {[%clk 0:00:05]} 46. h4 {[%clk 0:01:20]}  Rd7 {[%clk 0:00:05]} 47. f5 {[%clk 0:01:17]}  Rd3 {[%clk 0:00:06]} 48. Kf4 {[%clk 0:01:17]}  Rxc3 {[%clk 0:00:06]} 49. Rg6+ {[%clk 0:01:18]}  Kf7 {[%clk 0:00:06]} 50. Rxa6 {[%clk 0:01:16]}  Rc1 {[%clk 0:00:05]} 51. Ke5 {[%clk 0:01:14]}  c3 {[%clk 0:00:05]} 52. Ra7+ {[%clk 0:01:14]}  Kg8 {[%clk 0:00:04]} 53. Rc7 {[%clk 0:01:13]}  c2 {[%clk 0:00:03]} 54. f6 {[%clk 0:01:13]}  Kf8 {[%clk 0:00:02]} 55. Ke6 {[%clk 0:01:13]}  Kg8 {[%clk 0:00:02]} 56. f7+ {[%clk 0:01:13]}  Kg7 {[%clk 0:00:01]} 57. Ke7 {[%clk 0:01:06]}  Rf1 {[%clk 0:00:02]} 58. Ke8 {[%clk 0:01:04]}  Rxf7 {[%clk 0:00:03]} 59. Rxf7+ {[%clk 0:01:04]} 1-0


[Site "https://www.chess.com"]

[Event "Titled Tuesday Blitz March 28 Late 2023"]
[White "Sliwicki, Damian"]
[Black "cryptoguru02"]
[WhiteFideId "1127128"]
[WhiteElo "2030"]
[BlackElo "2530"]
[Result "0-1"]
[Round "06"]
[TimeControl "180+2"]
[Date "2023.03.28"]
[WhiteClock "0:00:06"]
[BlackClock "0:01:15"]

1. e4 {[%clk 0:03:00]}  g6 {[%clk 0:02:59]} 2. d4 {[%clk 0:02:54]}  Bg7 {[%clk 0:02:59]} 3. Nc3 {[%clk 0:02:52]}  d6 {[%clk 0:02:59]} 4. Be3 {[%clk 0:02:40]}  c6 {[%clk 0:02:58]} 5. Qd2 {[%clk 0:02:37]}  b5 {[%clk 0:02:58]} 6. O-O-O {[%clk 0:02:30]}  Nd7 {[%clk 0:02:57]} 7. Kb1 {[%clk 0:02:21]}  Qa5 {[%clk 0:02:55]} 8. f4 {[%clk 0:02:04]}  Nb6 {[%clk 0:02:50]} 9. e5 {[%clk 0:01:52]}  d5 {[%clk 0:02:41]} 10. Bd3 {[%clk 0:01:36]}  Nc4 {[%clk 0:02:39]} 11. Bxc4 {[%clk 0:01:31]}  bxc4 {[%clk 0:02:40]} 12. Qe1 {[%clk 0:01:18]}  Rb8 {[%clk 0:02:34]} 13. Bc1 {[%clk 0:01:16]}  h5 {[%clk 0:02:28]} 14. Nge2 {[%clk 0:01:14]}  Nh6 {[%clk 0:02:22]} 15. h3 {[%clk 0:01:13]}  Bf5 {[%clk 0:02:12]} 16. g4 {[%clk 0:01:05]}  hxg4 {[%clk 0:02:06]} 17. hxg4 {[%clk 0:01:06]}  Bxg4 {[%clk 0:01:59]} 18. Qg3 {[%clk 0:00:53]}  Be6 {[%clk 0:01:47]} 19. Qf3 {[%clk 0:00:41]}  Kd7 {[%clk 0:01:43]} 20. Ng3 {[%clk 0:00:39]}  Bg4 {[%clk 0:01:37]} 21. Qf2 {[%clk 0:00:19]}  Qxc3 {[%clk 0:01:35]} 22. Rde1 {[%clk 0:00:09]}  Qa5 {[%clk 0:01:25]} 23. e6+ {[%clk 0:00:08]}  Bxe6 {[%clk 0:01:21]} 24. Rxh6 {[%clk 0:00:05]}  Bxh6 {[%clk 0:01:16]} 25. f5 {[%clk 0:00:06]}  gxf5 {[%clk 0:01:15]} 0-1


[Site "https://www.chess.com"]

[Event "Titled Tuesday Blitz March 28 Late 2023"]
[White "Toniutti, Ezio"]
[Black "Nery Junior, Jose Antonio"]
[WhiteFideId "113034"]
[BlackFideId "2104822"]
[WhiteElo "2215"]
[BlackElo "2197"]
[Result "1-0"]
[Round "06"]
[TimeControl "180+2"]
[Date "2023.03.28"]
[WhiteClock "0:00:14"]
[BlackClock "0:00:02"]

1. d4 {[%clk 0:02:57]}  d5 {[%clk 0:02:59]} 2. c4 {[%clk 0:02:57]}  c6 {[%clk 0:02:59]} 3. Nc3 {[%clk 0:02:57]}  Nf6 {[%clk 0:02:59]} 4. e3 {[%clk 0:02:54]}  e6 {[%clk 0:02:56]} 5. Nf3 {[%clk 0:02:53]}  Nbd7 {[%clk 0:02:55]} 6. Bd3 {[%clk 0:02:51]}  Bd6 {[%clk 0:02:55]} 7. e4 {[%clk 0:02:46]}  dxe4 {[%clk 0:02:54]} 8. Nxe4 {[%clk 0:02:45]}  Nxe4 {[%clk 0:02:55]} 9. Bxe4 {[%clk 0:02:46]}  Nf6 {[%clk 0:02:54]} 10. Bc2 {[%clk 0:02:46]}  h6 {[%clk 0:02:31]} 11. O-O {[%clk 0:02:43]}  O-O {[%clk 0:02:28]} 12. Qd3 {[%clk 0:02:41]}  c5 {[%clk 0:02:06]} 13. Be3 {[%clk 0:02:37]}  Qc7 {[%clk 0:02:01]} 14. Rfd1 {[%clk 0:02:30]}  b6 {[%clk 0:01:57]} 15. Bd2 {[%clk 0:02:13]}  Bb7 {[%clk 0:01:53]} 16. Bc3 {[%clk 0:02:13]}  Be4 {[%clk 0:01:52]} 17. Qd2 {[%clk 0:02:11]}  Bxf3 {[%clk 0:01:30]} 18. gxf3 {[%clk 0:02:11]}  Bxh2+ {[%clk 0:01:28]} 19. Kg2 {[%clk 0:02:10]}  cxd4 {[%clk 0:01:21]} 20. Qxd4 {[%clk 0:01:53]}  e5 {[%clk 0:01:09]} 21. Qh4 {[%clk 0:01:38]}  Bf4 {[%clk 0:01:02]} 22. Rg1 {[%clk 0:01:29]}  Bg5 {[%clk 0:00:53]} 23. Qh2 {[%clk 0:01:21]}  Rfe8 {[%clk 0:00:45]} 24. Rae1 {[%clk 0:01:08]}  Bf4 {[%clk 0:00:24]} 25. Qh3 {[%clk 0:01:06]}  Qxc4 {[%clk 0:00:18]} 26. Kh1 {[%clk 0:01:03]}  Rad8 {[%clk 0:00:13]} 27. Qf5 {[%clk 0:00:56]}  Qc6 {[%clk 0:00:11]} 28. Re4 {[%clk 0:00:45]}  Qe6 {[%clk 0:00:09]} 29. Rxf4 {[%clk 0:00:41]}  exf4 {[%clk 0:00:09]} 30. Qxf6 {[%clk 0:00:36]}  Qxf6 {[%clk 0:00:09]} 31. Bxf6 {[%clk 0:00:36]}  Rd6 {[%clk 0:00:04]} 32. Rxg7+ {[%clk 0:00:29]}  Kf8 {[%clk 0:00:05]} 33. Bc3 {[%clk 0:00:28]}  a5 {[%clk 0:00:04]} 34. Rh7 {[%clk 0:00:28]}  Re2 {[%clk 0:00:03]} 35. Bb3 {[%clk 0:00:20]}  Rxf2 {[%clk 0:00:04]} 36. Rxf7+ {[%clk 0:00:19]}  Ke8 {[%clk 0:00:04]} 37. Rxf4 {[%clk 0:00:17]}  Re2 {[%clk 0:00:03]} 38. Re4+ {[%clk 0:00:17]}  Rxe4 {[%clk 0:00:02]} 39. fxe4 {[%clk 0:00:18]}  Rg6 {[%clk 0:00:02]} 40. Bd5 {[%clk 0:00:17]}  Kd7 {[%clk 0:00:02]} 41. e5 {[%clk 0:00:16]}  Rg5 {[%clk 0:00:02]} 42. Be4 {[%clk 0:00:14]} 1-0


[Site "https://www.chess.com"]

[Event "Titled Tuesday Blitz March 28 Late 2023"]
[White "Golubev, Mikhail"]
[Black "Garrido, Denis"]
[WhiteFideId "14100983"]
[BlackFideId "601217"]
[WhiteElo "2374"]
[BlackElo "2292"]
[Result "0-1"]
[Round "06"]
[TimeControl "180+2"]
[Date "2023.03.28"]
[WhiteClock "0:00:07"]
[BlackClock "0:00:03"]

1. e4 {[%clk 0:03:00]}  e5 {[%clk 0:02:59]} 2. Nf3 {[%clk 0:03:00]}  Nc6 {[%clk 0:02:59]} 3. Bc4 {[%clk 0:03:00]}  Nf6 {[%clk 0:02:58]} 4. Ng5 {[%clk 0:02:59]}  d5 {[%clk 0:02:58]} 5. exd5 {[%clk 0:03:00]}  Na5 {[%clk 0:02:59]} 6. Bb5+ {[%clk 0:03:00]}  c6 {[%clk 0:02:59]} 7. dxc6 {[%clk 0:03:01]}  bxc6 {[%clk 0:02:59]} 8. Bd3 {[%clk 0:03:01]}  Nd5 {[%clk 0:02:57]} 9. Nf3 {[%clk 0:02:59]}  Bd6 {[%clk 0:02:56]} 10. O-O {[%clk 0:02:59]}  Nf4 {[%clk 0:02:54]} 11. Re1 {[%clk 0:02:44]}  O-O {[%clk 0:02:41]} 12. Bf1 {[%clk 0:02:29]}  f5 {[%clk 0:01:58]} 13. d3 {[%clk 0:02:21]}  Qf6 {[%clk 0:01:55]} 14. Bd2 {[%clk 0:01:53]}  Nb7 {[%clk 0:01:52]} 15. Bc3 {[%clk 0:01:49]}  Re8 {[%clk 0:01:32]} 16. Nbd2 {[%clk 0:01:41]}  Qg6 {[%clk 0:01:18]} 17. g3 {[%clk 0:01:40]}  e4 {[%clk 0:01:07]} 18. dxe4 {[%clk 0:01:24]}  fxe4 {[%clk 0:01:06]} 19. Nh4 {[%clk 0:01:21]}  Qh6 {[%clk 0:00:47]} 20. Nxe4 {[%clk 0:01:14]}  Bh3 {[%clk 0:00:21]} 21. Bxh3 {[%clk 0:00:53]}  Nxh3+ {[%clk 0:00:21]} 22. Kg2 {[%clk 0:00:53]}  Nf4+ {[%clk 0:00:18]} 23. gxf4 {[%clk 0:00:45]}  Qxh4 {[%clk 0:00:16]} 24. Nxd6 {[%clk 0:00:43]}  Rxe1 {[%clk 0:00:15]} 25. Qxe1 {[%clk 0:00:15]}  Nxd6 {[%clk 0:00:14]} 26. Qe6+ {[%clk 0:00:14]}  Nf7 {[%clk 0:00:14]} 27. Re1 {[%clk 0:00:10]}  Rf8 {[%clk 0:00:12]} 28. Re4 {[%clk 0:00:07]}  Qh5 {[%clk 0:00:03]} 0-1


[Site "https://www.chess.com"]